bitfinex/quotes_BTCUSD_20251201
["timestamp","ask_amount","ask_price","bid_price","bid_amount"]
[1764616539180,0.55780792,85176.0,85175.0,5.004e-05]
[1764616539361,0.4114269,85176.0,85175.0,5.004e-05]
[1764616541855,0.2348548,85159.0,85158.0,0.00165467]
[1764616542046,0.2348548,85159.0,85158.0,0.00204299]
[1764616544655,0.01174246,85161.0,85158.0,0.00204299]
[1764616544829,0.01174218,85163.0,85160.0,0.11740741]
[1764616545037,0.01174218,85163.0,85162.0,0.01141066]
[1764616545740,0.2348548,85159.0,85158.0,0.00204299]
[1764616545944,0.2348548,85159.0,85158.0,0.01345365]
[1764616546144,0.2348548,85159.0,85158.0,0.00204299]
[1764616546749,0.24659247,85161.0,85158.0,0.00204299]
[1764616546949,0.23485299,85160.0,85158.0,0.00204299]
[1764616547160,0.23485299,85160.0,85158.0,0.00404299]
[1764616547944,0.2348548,85159.0,85158.0,0.00404299]
[1764616548375,0.2348548,85159.0,85158.0,0.00204299]
[1764616548680,0.2348548,85159.0,85158.0,0.01545365]
[1764616549085,0.01864,85169.0,85158.0,0.01545365]
[1764616549086,0.23484125,85164.0,85161.0,0.23484861]
[1764616549404,0.23484125,85164.0,85163.0,0.01141066]
[1764616550003,0.01174108,85171.0,85163.0,0.24658561]
[1764616550204,0.24656279,85171.0,85170.0,0.11740741]
[1764616550417,0.24656279,85171.0,85170.0,0.12881807]
[1764616550654,0.24656279,85171.0,85170.0,0.11740741]
[1764616551907,0.24656279,85171.0,85170.0,0.12881807]
[1764616552543,0.24656279,85171.0,85170.0,0.11840741]
[1764616553682,0.01173998,85179.0,85170.0,0.26580741]
[1764616553892,0.01174012,85178.0,85173.0,0.0117408]
[1764616554082,0.01173998,85179.0,85177.0,0.01141066]
[1764616554302,0.0117397,85181.0,85180.0,0.01141066]
[1764616554658,0.14884671,85225.0,85180.0,0.01173984]
[1764616554888,0.24650976,85190.0,85189.0,0.11740741]
[1764616555276,0.24650976,85190.0,85189.0,0.12881807]
[1764616555722,0.24650976,85190.0,85189.0,0.11740741]
[1764616555922,0.24650976,85190.0,85189.0,0.12881807]
[1764616556340,0.24750976,85190.0,85189.0,0.12881807]
[1764616556571,0.24653872,85180.0,85172.0,0.01174094]
[1764616556857,0.24653872,85180.0,85179.0,0.01141066]
[1764616557035,0.24653444,85181.0,85178.0,0.23480224]
[1764616557219,0.24653444,85181.0,85180.0,0.01141066]
[1764616557421,0.01173943,85183.0,85182.0,0.01141066]
[1764616557652,0.24652906,85183.0,85182.0,0.01141066]
[1764616558678,0.24652906,85183.0,85182.0,0.01241066]
[1764616558899,0.24652906,85183.0,85182.0,0.001]
[1764616561048,0.24652906,85183.0,85172.0,0.00011645]
[1764616561049,0.23481395,85174.0,85172.0,0.00011645]
[1764616561223,0.23481619,85173.0,85172.0,0.00011645]
[1764616561636,0.23481619,85173.0,85172.0,0.01152711]
[1764616561850,0.23481619,85173.0,85172.0,0.00011645]
[1764616562406,0.33108831,85173.0,85172.0,0.00211645]
[1764616562611,0.65408831,85173.0,85172.0,0.00211645]
[1764616562828,0.65408831,85173.0,85172.0,0.00011645]
[1764616563445,0.67927618,85173.0,85172.0,0.00011645]
[1764616563587,0.74179917,85173.0,85172.0,0.00011645]
[1764616563791,2.74179917,85173.0,85172.0,0.00011645]
[1764616564069,2.74179917,85173.0,85172.0,1e-08]
[1764616564251,0.5578548,85159.0,85125.0,0.11740741]
[1764616564388,0.69390221,85159.0,85158.0,0.00204299]
[1764616564795,0.71232003,85159.0,85158.0,0.00204299]
[1764616564991,0.69390221,85159.0,85158.0,0.00204299]
[1764616565421,0.5764948,85159.0,85158.0,0.00204299]
[1764616565886,0.66519577,85159.0,85158.0,0.00204299]
[1764616566794,0.64655577,85159.0,85158.0,0.00204299]
[1764616566992,0.66519577,85159.0,85158.0,0.00204299]
[1764616567810,0.68361411,85159.0,85158.0,0.00204299]
[1764616568171,0.23494584,85126.0,85120.0,0.0002]
[1764616568372,0.23495964,85121.0,85120.0,0.0002]
[1764616569404,0.55795964,85121.0,85120.0,0.0002]
[1764616570295,0.55795964,85121.0,85120.0,0.0032]
[1764616570714,0.55795964,85121.0,85120.0,0.0002]
[1764616570895,0.6731856,85121.0,85120.0,0.0002]
[1764616571103,0.23501762,85100.0,85099.0,0.11201807]
[1764616571904,0.23503972,85092.0,85091.0,0.01864]
[1764616572150,0.23503972,85092.0,85088.0,0.02316319]
[1764616572454,0.23503972,85092.0,85091.0,0.00011654]
[1764616572828,0.55803972,85092.0,85091.0,0.00011654]
[1764616573996,0.24679174,85094.0,85091.0,0.00011654]
[1764616574200,0.01864,85092.0,85091.0,0.00011654]
[1764616574436,0.01175115,85098.0,85093.0,0.00211707]
[1764616574632,0.01864,85096.0,85091.0,0.02327932]
[1764616574785,0.24677639,85098.0,85092.0,0.01141066]
[1764616574994,0.24677639,85098.0,85091.0,0.00011654]
[1764616574995,0.24677639,85098.0,85097.0,0.00198669]
[1764616575518,0.26541639,85098.0,85097.0,0.00198669]
[1764616576140,0.24677639,85098.0,85097.0,0.00198669]
[1764616576685,0.01175019,85105.0,85097.0,0.01373798]
[1764616576930,0.01174963,85109.0,85107.0,0.01141066]
[1764616577137,0.23499553,85108.0,85107.0,0.01141066]
[1764616577480,0.23499553,85108.0,85093.0,0.01141066]
[1764616577481,0.01175143,85096.0,85093.0,0.01141066]
[1764616577612,0.23503695,85093.0,85087.0,0.24680539]
[1764616577952,0.23503695,85093.0,85092.0,0.11740741]
[1764616579918,0.23503837,85093.0,85088.0,0.01175253]
[1764616580116,0.0117517,85094.0,85089.0,0.0117524]
[1764616580330,0.0117517,85094.0,85092.0,0.01141066]
[1764616580536,0.0117517,85094.0,85093.0,0.01141066]
[1764616580823,0.23502438,85098.0,85093.0,0.01141066]
[1764616580824,0.23500586,85105.0,85099.0,0.24677136]
[1764616580975,0.23500586,85105.0,85104.0,0.12881807]
[1764616580976,0.24675605,85105.0,85104.0,0.12881807]
[1764616581250,0.01175019,85105.0,85104.0,0.12881807]
[1764616581411,0.246754,85105.0,85104.0,0.12881807]
[1764616582111,0.246754,85105.0,85104.0,0.13057665]
[1764616582514,0.246754,85105.0,85104.0,0.00175858]
[1764616582714,0.34427754,85105.0,85104.0,0.00175858]
[1764616583139,0.66727754,85105.0,85104.0,0.00175858]
[1764616586221,0.589394,85105.0,85104.0,0.00175858]
[1764616587547,0.570754,85105.0,85104.0,0.00175858]
[1764616587670,0.589394,85105.0,85104.0,0.00175858]
[1764616588730,0.61445655,85105.0,85104.0,0.00175858]
[1764616589270,0.42352244,85105.0,85104.0,0.00175858]
[1764616589475,0.55149859,85105.0,85104.0,0.00175858]
[1764616589933,0.55803972,85092.0,85080.0,0.0002]
[1764616590133,0.57667972,85092.0,85080.0,0.0002]
[1764616590904,0.55803972,85092.0,85080.0,0.0002]
[1764616591101,0.57667972,85092.0,85080.0,0.0002]
[1764616591517,0.23503972,85092.0,85080.0,0.01195364]
[1764616591734,0.23503972,85092.0,85090.0,0.01161066]
[1764616592055,0.23503972,85092.0,85091.0,0.0115272]
[1764616592256,0.23503972,85092.0,85091.0,0.00011654]
[1764616592997,0.23503972,85092.0,85091.0,0.00211654]
[1764616593200,0.33475088,85100.0,85096.0,0.01141066]
[1764616593201,0.01175101,85099.0,85096.0,0.01141066]
[1764616593319,0.2467772,85097.0,85096.0,0.01141066]
[1764616593516,0.23501104,85103.0,85096.0,0.01141066]
[1764616593726,0.01174936,85111.0,85101.0,0.01175074]
[1764616593925,0.24673951,85110.0,85109.0,0.01141066]
[1764616594123,0.01174936,85111.0,85106.0,0.24674908]
[1764616594478,0.2349965,85108.0,85107.0,0.01141066]
[1764616594838,0.01174881,85115.0,85107.0,0.01141066]
[1764616594839,0.01174867,85116.0,85107.0,0.02316057]
[1764616595059,0.24673617,85112.0,85111.0,0.01141066]
[1764616595843,0.24674355,85109.0,85107.0,0.001]
[1764616596044,0.23498052,85114.0,85110.0,0.0117495]
[1764616596312,0.24672946,85114.0,85113.0,0.01141066]
[1764616596455,0.24671068,85120.0,85113.0,0.24639169]
[1764616596653,0.24671934,85117.0,85115.0,0.01141066]
[1764616596862,0.23498039,85114.0,85113.0,0.01141066]
[1764616597263,0.01174881,85115.0,85113.0,0.01141066]
[1764616597461,0.01174798,85121.0,85114.0,0.01174894]
[1764616597709,0.01174743,85125.0,85124.0,0.01141066]
[1764616597842,0.01174756,85124.0,85123.0,0.01141066]
[1764616598198,0.24669993,85124.0,85123.0,0.01141066]
[1764616598359,0.23495938,85122.0,85121.0,0.01141066]
[1764616598958,0.01174715,85127.0,85126.0,0.01141066]
[1764616599182,0.24669023,85127.0,85126.0,0.01141066]
[1764616600193,0.23493604,85130.0,85128.0,0.01141066]
[1764616600397,0.01174687,85129.0,85127.0,0.01141066]
[1764616600716,0.24667902,85131.0,85128.0,0.01174701]
[1764616600919,0.23493527,85130.0,85129.0,0.01141066]
[1764616601730,0.2349379,85129.0,85119.0,0.24671134]
[1764616601953,0.23493756,85129.0,85128.0,0.001]
[1764616602165,0.23495688,85122.0,85121.0,0.0115272]
[1764616603072,0.23495497,85123.0,85121.0,0.00011654]
[1764616603281,0.01174715,85127.0,85121.0,0.0115272]
[1764616603495,0.06021958,85125.0,85122.0,0.01174784]
[1764616603699,0.01174453,85146.0,85134.0,0.01174618]
[1764616603953,0.24663808,85145.0,85144.0,0.12881807]
[1764616604442,0.24663808,85145.0,85144.0,0.01141066]
[1764616604726,0.234921,85135.0,85134.0,0.12881807]
[1764616605486,0.01174563,85138.0,85137.0,0.01141066]
[1764616605687,0.24665891,85138.0,85137.0,0.01141066]
[1764616607771,0.24665891,85138.0,85137.0,0.01241066]
[1764616607967,0.01174411,85149.0,85144.0,0.0117448]
[1764616608184,0.01174342,85154.0,85149.0,0.01141066]
[1764616608185,0.24662013,85152.0,85149.0,0.01141066]
[1764616608520,0.01864,85162.0,85150.0,0.01174398]
[1764616608521,0.01174315,85156.0,85150.0,0.01174398]
[1764616608720,0.01864,85162.0,85154.0,0.01174342]
[1764616608943,0.01174205,85164.0,85161.0,0.11740741]
[1764616609157,0.23484652,85162.0,85161.0,0.12881807]
[1764616609565,0.23484652,85162.0,85161.0,0.11740741]
[1764616609791,0.23484652,85162.0,85161.0,0.12881807]
[1764616610197,0.23484652,85162.0,85161.0,0.11740741]
[1764616611042,0.23484652,85162.0,85161.0,0.12881807]
[1764616611441,0.23484652,85162.0,85161.0,0.12981807]
[1764616611711,0.23484652,85162.0,85161.0,0.11840741]
[1764616612115,0.23484652,85162.0,85161.0,0.12981807]
[1764616612320,0.23484652,85162.0,85161.0,0.11840741]
[1764616615722,0.23484652,85162.0,85161.0,0.001]
[1764616616448,0.01173998,85179.0,85171.0,0.24656045]
[1764616616642,0.00319303,85175.0,85174.0,0.35222085]
[1764616616834,0.00319303,85175.0,85174.0,0.36363151]
[1764616617036,0.00319303,85175.0,85174.0,0.12881807]
[1764616617656,0.23800371,85175.0,85174.0,0.12881807]
[1764616617861,0.23800371,85175.0,85174.0,0.11740741]
[1764616618286,0.23800371,85175.0,85174.0,0.11940741]
[1764616618483,0.23800371,85175.0,85174.0,0.11740741]
[1764616619859,0.23800371,85175.0,85174.0,0.11940741]
[1764616620133,0.23800371,85175.0,85174.0,0.11740741]
[1764616620360,0.23800371,85175.0,85174.0,0.11840741]
[1764616620580,0.23800371,85175.0,85174.0,0.001]
[1764616621186,0.23800371,85175.0,85166.0,0.01174177]
[1764616621187,0.01174108,85171.0,85166.0,0.01174177]
[1764616621305,0.24656279,85171.0,85170.0,0.01141066]
[1764616622137,0.23800448,85175.0,85172.0,0.01174094]
[1764616622138,0.00319303,85175.0,85172.0,0.01174094]
[1764616622336,0.00319303,85175.0,85174.0,0.01141066]
[1764616622756,0.00319303,85175.0,85174.0,0.2462241]
[1764616623282,0.00319303,85175.0,85174.0,0.30874709]
[1764616623705,0.00319303,85175.0,85174.0,0.31074709]
[1764616624580,0.00319303,85175.0,85174.0,0.30874709]
[1764616624781,0.00319303,85175.0,85174.0,0.70874709]
[1764616624991,0.00319303,85175.0,85174.0,0.4]
[1764616625201,0.00319303,85175.0,85174.0,0.01141066]
[1764616625412,0.01174094,85172.0,85162.0,0.12914973]
[1764616625617,0.24656279,85171.0,85166.0,0.24657609]
[1764616625821,0.23800436,85175.0,85173.0,0.01141066]
[1764616625958,0.23800436,85175.0,85174.0,0.003]
[1764616626153,0.23481344,85174.0,85173.0,0.01141066]
[1764616626566,0.23483138,85168.0,85164.0,0.01864]
[1764616626796,0.23483138,85168.0,85162.0,0.11740741]
[1764616626797,0.23484377,85163.0,85162.0,0.11740741]
[1764616627003,0.23484377,85163.0,85162.0,0.12881807]
[1764616627628,0.23484377,85163.0,85162.0,0.11740741]
[1764616628892,0.23486859,85154.0,85153.0,0.03005066]
[1764616629276,0.23486859,85154.0,85153.0,0.01141066]
[1764616629565,0.23491978,85136.0,85135.0,0.01141066]
[1764616630599,0.074137,85136.0,85135.0,0.01141066]
[1764616630753,0.01174536,85140.0,85135.0,0.01141066]
[1764616630754,0.01174425,85148.0,85143.0,0.01141066]
[1764616630954,0.01174522,85141.0,85135.0,0.24966681]
[1764616631165,0.2466504,85141.0,85140.0,0.01141066]
[1764616631565,0.01174384,85151.0,85140.0,0.01141066]
[1764616631804,0.01174356,85153.0,85150.0,0.11740741]
[1764616631941,0.24661203,85154.0,85153.0,0.01141066]
[1764616633827,0.46954872,85189.0,85161.0,0.01174246]
[1764616634065,0.02039998,85200.0,85168.0,0.11740741]
[1764616634066,0.23482727,85169.0,85168.0,0.11740741]
[1764616635409,0.23482727,85169.0,85168.0,0.12881807]
[1764616635621,0.23482727,85169.0,85168.0,0.11740741]
[1764616636291,0.01493356,85175.0,85168.0,0.11740741]
[1764616636292,0.00319303,85175.0,85174.0,0.01141066]
[1764616636493,0.00319303,85175.0,85174.0,0.2462241]
[1764616636937,0.00319303,85175.0,85174.0,0.01141066]
[1764616637765,0.00319303,85175.0,85162.0,0.01174232]
[1764616637766,0.23482722,85169.0,85162.0,0.01174232]
[1764616638007,0.23482722,85169.0,85167.0,0.01141066]
[1764616638664,0.23482722,85169.0,85168.0,0.12881807]
[1764616638954,0.23487686,85151.0,85150.0,0.12881807]
[1764616639177,0.23487424,85152.0,85150.0,0.27621807]
[1764616639333,0.01174356,85153.0,85150.0,0.27621807]
[1764616639660,0.24661565,85153.0,85150.0,0.27621807]
[1764616639813,0.23487479,85152.0,85150.0,0.26480741]
[1764616640012,0.01174356,85153.0,85150.0,0.26480741]
[1764616640240,0.01174301,85157.0,85152.0,0.2466178]
[1764616640440,0.10570046,85227.0,85150.0,0.26480741]
[1764616640441,0.01174191,85165.0,85153.0,0.01174356]
[1764616640642,0.24658595,85163.0,85162.0,0.01141066]
[1764616641048,0.01174274,85159.0,85158.0,0.01141066]
[1764616641248,0.24659811,85159.0,85158.0,0.01141066]
[1764616642902,0.24659754,85159.0,85158.0,0.01141066]
[1764616643109,0.24659754,85159.0,85158.0,0.01441066]
[1764616643522,0.01174177,85166.0,85164.0,0.01141066]
[1764616643723,0.24659195,85161.0,85158.0,0.1504]
[1764616643925,0.2348548,85159.0,85158.0,0.16181066]
[1764616644319,0.2348548,85159.0,85158.0,0.1474]
[1764616644516,0.24659195,85161.0,85158.0,0.1474]
[1764616644885,0.23485207,85160.0,85159.0,0.01141066]
[1764616645685,0.2348548,85159.0,85158.0,0.1474]
[1764616645810,0.2348548,85159.0,85158.0,0.1504]
[1764616646013,0.2348548,85159.0,85158.0,0.1474]
[1764616647261,0.2348548,85159.0,85158.0,0.15881066]
[1764616648577,0.01174205,85164.0,85158.0,0.15881066]
[1764616648578,0.323,85176.0,85158.0,0.16181066]
[1764616648777,0.01174232,85162.0,85158.0,0.4084084]
[1764616649030,0.01174246,85161.0,85158.0,0.1504]
[1764616649202,0.01174205,85164.0,85159.0,0.23485404]
[1764616649404,0.24658306,85164.0,85163.0,0.11740741]
[1764616649861,0.24658306,85164.0,85163.0,0.12881807]
[1764616650126,0.24658306,85164.0,85163.0,0.11740741]
[1764616651332,0.24658306,85164.0,85163.0,0.11940741]
[1764616651536,0.0117408,85173.0,85167.0,0.01174163]
[1764616651738,0.23482171,85171.0,85168.0,0.1474]
[1764616651960,0.23482722,85169.0,85168.0,0.1474]
[1764616652559,0.23482722,85169.0,85168.0,0.15881066]
[1764616653191,0.23482722,85169.0,85168.0,0.1474]
[1764616653740,0.23482722,85169.0,85168.0,0.15881066]
[1764616653942,0.23482722,85169.0,85168.0,0.1484]
[1764616654141,0.23482722,85169.0,85168.0,0.15881066]
[1764616654344,0.23482722,85169.0,85168.0,0.1474]
[1764616654566,0.23482722,85169.0,85168.0,0.1484]
[1764616655510,0.23482722,85169.0,85168.0,0.001]
[1764616655678,0.55782722,85169.0,85168.0,0.001]
[1764616656705,0.23488514,85148.0,85147.0,0.1474]
[1764616657079,0.23491824,85136.0,85135.0,0.15881066]
[1764616658097,0.23491824,85136.0,85135.0,0.15981066]
[1764616658695,0.01174522,85141.0,85135.0,0.15981066]
[1764616658902,0.23491824,85136.0,85135.0,0.15981066]
[1764616660085,0.23491824,85136.0,85135.0,0.1484]
[1764616660294,0.23491824,85136.0,85135.0,0.001]
[1764616660676,0.23491824,85136.0,85124.0,0.01864]
[1764616660677,0.2349486,85125.0,85124.0,0.01864]
[1764616660885,0.2349486,85125.0,85124.0,0.01875654]
[1764616661085,0.2349486,85125.0,85124.0,0.0301672]
[1764616661705,0.01174715,85127.0,85124.0,0.01875654]
[1764616661855,0.01174715,85127.0,85126.0,0.01141066]
[1764616662126,0.24669209,85127.0,85126.0,0.01141066]
[1764616663234,0.24669209,85127.0,85124.0,0.00211654]
[1764616663235,0.2349486,85125.0,85124.0,0.00211654]
[1764616663451,0.2349486,85125.0,85124.0,0.00011654]
[1764616664267,0.2349486,85125.0,85124.0,0.00211654]
[1764616666428,1.01563742,85150.0,85124.0,0.00211654]
[1764616666627,0.01174591,85136.0,85133.0,0.11740741]
[1764616666897,0.23492376,85134.0,85133.0,0.11740741]
[1764616667176,0.23492376,85134.0,85133.0,0.27621807]
[1764616667585,0.23492376,85134.0,85133.0,0.26480741]
[1764616667786,0.23492376,85134.0,85133.0,0.1474]
[1764616668979,0.23492376,85134.0,85133.0,0.15881066]
[1764616669205,0.23492376,85134.0,85133.0,0.1474]
[1764616670420,0.23492694,85133.0,85131.0,0.1474]
[1764616670621,0.24666994,85134.0,85132.0,0.11740741]
[1764616670858,0.23492652,85133.0,85132.0,0.11740741]
[1764616671174,0.01174563,85138.0,85132.0,0.11740741]
[1764616671580,0.01174577,85137.0,85133.0,0.24667049]
[1764616671805,0.01174577,85137.0,85134.0,0.23492316]
[1764616672008,0.24666573,85136.0,85133.0,0.01174632]
[1764616672232,0.24666573,85136.0,85133.0,0.24667212]
[1764616672669,0.24666632,85137.0,85134.0,0.23492346]
[1764616672817,0.24666632,85137.0,85134.0,0.24666964]
[1764616673004,0.23491826,85136.0,85134.0,0.24666964]
[1764616673603,0.24666632,85137.0,85134.0,0.24666964]
[1764616673842,0.24666632,85137.0,85132.0,0.12881807]
[1764616673843,0.23492376,85134.0,85132.0,0.12881807]
[1764616674187,0.01174605,85135.0,85132.0,0.14056453]
[1764616674743,0.01174605,85135.0,85134.0,0.001]
[1764616675507,0.0117448,85144.0,85134.0,0.001]
[1764616675805,0.23491558,85137.0,85134.0,0.23592152]
[1764616676122,0.23491558,85137.0,85134.0,0.23492152]
[1764616676345,0.23491558,85137.0,85135.0,0.1474]
[1764616676540,0.01174536,85140.0,85136.0,0.23491824]
[1764616676744,0.01174536,85140.0,85132.0,0.14056453]
[1764616676745,0.01174315,85156.0,85140.0,0.01174536]
[1764616676919,0.23490072,85143.0,85141.0,0.1474]
[1764616677128,0.0117448,85144.0,85143.0,0.01141066]
[1764616677328,0.23489019,85147.0,85144.0,0.0117448]
[1764616677530,0.2348721,85153.0,85149.0,0.01174411]
[1764616677742,0.24661456,85154.0,85150.0,0.24662109]
[1764616677956,0.24661456,85154.0,85153.0,0.01141066]
[1764616678289,0.24661456,85154.0,85146.0,0.12915194]
[1764616678290,0.01174136,85169.0,85161.0,0.01174246]
[1764616678446,0.01454548,85175.0,85168.0,0.11740741]
[1764616678629,0.24656279,85171.0,85170.0,0.01141066]
[1764616678830,0.24695087,85171.0,85170.0,0.01141066]
[1764616679230,0.23482722,85169.0,85168.0,0.12881807]
[1764616679470,0.24695087,85171.0,85168.0,0.12881807]
[1764616679718,0.23520979,85171.0,85170.0,0.01141066]
[1764616679929,0.23482722,85169.0,85168.0,0.12881807]
[1764616680279,0.24695087,85171.0,85168.0,0.12881807]
[1764616680280,0.00038808,85171.0,85170.0,0.23482446]
[1764616680509,0.00038808,85171.0,85170.0,0.30875811]
[1764616682543,0.0004,85200.0,85191.0,0.01173832]
[1764616682741,0.00051639,85200.0,85199.0,0.74908559]
[1764616683150,0.01055917,85224.0,85218.0,0.01173461]
[1764616683352,0.01173433,85220.0,85217.0,0.01864]
[1764616683613,0.01107528,85226.0,85217.0,0.01864]
[1764616683614,0.0004,85230.0,85229.0,0.23466191]
[1764616683806,0.00051641,85230.0,85229.0,0.01141066]
[1764616684009,0.23517556,85230.0,85229.0,0.01141066]
[1764616684218,0.00051641,85230.0,85229.0,0.01141066]
[1764616684845,0.00051641,85230.0,85225.0,0.01141066]
[1764616684846,0.01173323,85228.0,85225.0,0.01141066]
[1764616685070,0.23467445,85225.0,85223.0,0.11740741]
[1764616685275,0.23467445,85225.0,85224.0,0.01141066]
[1764616685652,0.24640445,85226.0,85224.0,0.01141066]
[1764616685793,0.01173309,85229.0,85225.0,0.01141066]
[1764616685989,0.00051641,85230.0,85225.0,0.001]
[1764616686230,0.23466866,85227.0,85226.0,0.01141066]
[1764616686444,0.0117335,85226.0,85224.0,0.01141066]
[1764616686654,0.0117335,85226.0,85225.0,0.01141066]
[1764616687329,0.01173323,85228.0,85225.0,0.01141066]
[1764616687548,0.2464015,85227.0,85225.0,0.01141066]
[1764616687734,0.01173337,85227.0,85225.0,0.01141066]
[1764616687937,0.00051641,85230.0,85228.0,0.23466329]
[1764616688125,0.00051641,85230.0,85229.0,0.01141066]
[1764616688289,0.24691127,85230.0,85227.0,0.01864]
[1764616688489,0.23467292,85225.0,85224.0,0.01141066]
[1764616688691,0.24640367,85226.0,85225.0,0.01241066]
[1764616688889,0.24640367,85226.0,85224.0,0.01864]
[1764616689109,0.24640367,85226.0,85225.0,0.01141066]
[1764616689911,0.24640367,85226.0,85225.0,0.002]
[1764616690225,0.24806184,85226.0,85225.0,0.002]
[1764616690428,0.6698388,85226.0,85225.0,0.002]
[1764616690822,0.57106184,85226.0,85225.0,0.002]
[1764616691209,0.58947256,85226.0,85225.0,0.002]
[1764616691408,0.58947256,85226.0,85193.0,0.0186]
[1764616691409,0.23474178,85200.0,85193.0,0.0186]
[1764616691611,0.01173681,85202.0,85193.0,0.0186]
[1764616691612,0.23475752,85195.0,85193.0,0.0186]
[1764616691847,0.23475752,85195.0,85186.0,0.12914642]
[1764616691848,0.2347646,85192.0,85186.0,0.12914642]
[1764616692046,0.01173832,85191.0,85187.0,0.0186]
[1764616692286,0.24650726,85191.0,85187.0,0.0186]
[1764616692581,0.23477485,85188.0,85187.0,0.00011639]
[1764616692740,0.23477485,85188.0,85187.0,0.01152705]
[1764616692940,0.0117375,85197.0,85195.0,0.01141066]
[1764616693145,0.23477273,85189.0,85187.0,0.00011639]
[1764616693344,0.01173846,85190.0,85188.0,0.01141066]
[1764616693585,0.01173777,85195.0,85189.0,0.01141066]
[1764616693786,0.2464757,85202.0,85189.0,0.0117386]
[1764616693968,0.24646785,85204.0,85201.0,0.11740741]
[1764616694164,0.24646785,85204.0,85203.0,0.01141066]
[1764616694331,0.23473627,85202.0,85187.0,0.00211639]
[1764616694533,0.24651104,85190.0,85189.0,0.01141066]
[1764616695051,0.23477485,85188.0,85187.0,0.00011639]
[1764616696178,0.23477485,85188.0,85187.0,0.00211639]
[1764616698335,0.23477485,85188.0,85187.0,0.01352705]
[1764616698764,0.23519771,85188.0,85187.0,0.01352705]
[1764616699171,0.23519771,85188.0,85187.0,0.00211639]
[1764616702169,0.65449485,85188.0,85187.0,0.00211639]
[1764616702414,0.67309485,85188.0,85187.0,0.00211639]
[1764616703047,0.73561784,85188.0,85187.0,1e-08]
[1764616703385,0.6207207,85188.0,85187.0,1e-08]
[1764616703588,0.6393207,85188.0,85187.0,1e-08]
[1764616703739,0.2466178,85152.0,85151.0,0.01141066]
[1764616703903,0.2466178,85152.0,85151.0,0.01179874]
[1764616704109,0.2466178,85152.0,85151.0,0.00038808]
[1764616704316,0.2466178,85152.0,85151.0,0.01179874]
[1764616705110,0.2466178,85152.0,85151.0,0.01379874]
[1764616705315,0.2466178,85152.0,85151.0,0.01179874]
[1764616705766,0.2466178,85152.0,85151.0,0.01379874]
[1764616706632,0.06859715,85152.0,85151.0,0.01379874]
[1764616707007,0.08034085,85152.0,85151.0,0.01379874]
[1764616707418,0.23487148,85153.0,85151.0,0.01379874]
[1764616707743,0.24661276,85154.0,85151.0,0.01379874]
[1764616707744,0.01174342,85154.0,85151.0,0.01379874]
[1764616707889,0.2348741,85152.0,85151.0,0.01379874]
[1764616708310,0.23487153,85153.0,85151.0,0.01379874]
[1764616708311,0.23483849,85165.0,85157.0,0.23486008]
[1764616708544,0.2348741,85152.0,85151.0,0.00038808]
[1764616708849,0.23487228,85153.0,85151.0,0.00138808]
[1764616709148,0.2348741,85152.0,85151.0,0.01279874]
[1764616710356,0.23485528,85159.0,85155.0,0.24660648]
[1764616710646,0.23477258,85190.0,85151.0,0.00038808]
[1764616710647,0.0117408,85173.0,85170.0,0.01141066]
[1764616710921,0.01174012,85178.0,85174.0,0.01141066]
[1764616710922,0.24655192,85175.0,85174.0,0.01141066]
[1764616711036,0.24654542,85177.0,85176.0,0.01141066]
[1764616712634,0.23483274,85167.0,85166.0,0.1474]
[1764616714875,0.23484101,85164.0,85163.0,0.01141066]
[1764616715081,0.23484101,85164.0,85157.0,0.01141066]
[1764616715082,0.24660227,85158.0,85157.0,0.01141066]
[1764616715442,0.01174246,85161.0,85157.0,0.25801389]
[1764616715644,0.01174246,85161.0,85160.0,0.11740741]
[1764616715852,0.01174246,85161.0,85160.0,0.12881807]
[1764616716056,0.24659419,85161.0,85160.0,0.11140741]
[1764616716258,0.24659419,85161.0,85160.0,0.12281807]
[1764616716706,0.23484905,85162.0,85160.0,0.11140741]
[1764616717117,0.23484905,85162.0,85161.0,0.01141066]
[1764616718037,0.01174053,85175.0,85164.0,0.02315271]
[1764616718278,0.24657423,85168.0,85167.0,0.01141066]
[1764616719205,0.23483549,85166.0,85165.0,0.1474]
[1764616719411,0.23483549,85166.0,85165.0,0.15881066]
[1764616721186,0.23483549,85166.0,85165.0,0.1474]
[1764616721405,0.2348741,85152.0,85130.0,0.0004]
[1764616721633,0.5578741,85152.0,85133.0,0.11740741]
[1764616722377,0.5578741,85152.0,85130.0,0.0004]
[1764616722622,0.557921,85135.0,85130.0,0.0004]
[1764616734835,0.55758904,85135.0,85130.0,0.0004]
[1764616739853,0.672815,85135.0,85130.0,0.0004]
[1764616740189,0.55758904,85135.0,85130.0,0.0004]
[1764616740912,0.57622904,85135.0,85130.0,0.0004]
[1764616742952,0.55758904,85135.0,85130.0,0.0004]
[1764616743183,0.57622904,85135.0,85130.0,0.0004]
[1764616743378,0.57722904,85135.0,85130.0,0.0004]
[1764616743581,0.55858904,85135.0,85130.0,0.0004]
[1764616743819,0.57722904,85135.0,85130.0,0.0004]
[1764616744823,0.692455,85135.0,85130.0,0.0004]
[1764616745720,0.71756759,85135.0,85130.0,0.0004]
[1764616745923,0.62045503,85131.0,85130.0,1e-08]
[1764616746102,2.64556762,85131.0,85130.0,0.00011655]
[1764616746290,2.76079358,85131.0,85130.0,0.00011655]
[1764616747335,2.80271264,85131.0,85130.0,0.00011655]
[1764616747963,2.8211455,85131.0,85130.0,0.00011655]
[1764616748410,2.8241455,85131.0,85130.0,0.00011655]
[1764616748821,2.8211455,85131.0,85130.0,0.00011655]
[1764616749020,2.8261455,85131.0,85130.0,0.00011655]
[1764616749193,2.78422644,85131.0,85130.0,0.00011655]
[1764616750187,0.6205268,85105.0,85104.0,1e-08]
[1764616750369,0.75657421,85105.0,85104.0,1e-08]
[1764616750982,2.75657421,85105.0,85104.0,1e-08]
[1764616751339,2.78176428,85105.0,85104.0,1e-08]
[1764616752538,0.78376428,85105.0,85104.0,1e-08]
[1764616752736,2.73060564,85105.0,85104.0,1e-08]
[1764616753567,0.59753865,85105.0,85104.0,1e-08]
[1764616753773,0.61617865,85105.0,85104.0,1e-08]
[1764616754175,0.59098858,85105.0,85104.0,1e-08]
[1764616755802,0.39854665,85105.0,85104.0,1e-08]
[1764616756001,0.39854665,85105.0,85055.0,0.01175709]
[1764616756002,0.23513731,85057.0,85055.0,0.06252299]
[1764616756249,0.23513731,85057.0,85055.0,0.07393365]
[1764616756667,0.23513731,85057.0,85027.0,0.14577435]
[1764616756668,0.01175737,85053.0,85050.0,0.0002]
[1764616756841,0.23515302,85051.0,85050.0,0.0002]
[1764616758448,0.33273879,85051.0,85050.0,0.0062]
[1764616758693,0.23515302,85051.0,85050.0,0.0062]
[1764616759856,0.23515302,85051.0,85050.0,0.0072]
[1764616763592,0.01175709,85055.0,85050.0,0.0072]
[1764616763772,0.2351509,85052.0,85050.0,0.0072]
[1764616763970,0.23515302,85051.0,85050.0,0.0072]
[1764616764376,0.24690539,85053.0,85050.0,0.0072]